Cogmind - Beta 13 *** ADVENTURER MODE // 2024.08.05 @ 05:30:31 Player: Jefffff Result: Self-destructed Performance ------------- Evolutions (4) 2000 Regions Visited (9) 1800 Robots Destroyed (205) 1025 Value Destroyed (8223) 8223 Prototype IDs (7) 140 Alien Tech Used (0) 0 Bonus (3398) 3398 TOTAL SCORE: 16586 Bonus ------- High Alert Combat Kills 650 Follower Combat Kills 221 Entered Garrisons 600 Used RIF Installer 2000 Friendly Fire -73 Cogmind --------- Core Integrity 510/850 Matter 227/300 Energy 85/100 System Corruption 2% Temperature Cool (0) Movement Core (1350) Ox26 Location -6/Garrison Parts ------- > --- POWER (2) -------- (None) > --- PROPULSION (6) --- (None) > --- UTILITY (4) ------ Huge Storage Unit Advanced Targeting Computer Core Analyzer Relay Coupler [Grunt] (19) > --- WEAPON (3) ------- Plasma Cutter > --- INVENTORY (25) --- Improved Deuterium Engine Power Amplifier Cargo Storage Unit Advanced Weight Redist. System Improved Sensor Array Advanced Targeting Computer Core Analyzer Armor Integrity Analyzer Advanced ECM Suite Hardlight Generator Authchip [R/Combat] Authchip [Processor] Authchip [Weapon] Relay Coupler [Grunt] (38) Relay Coupler [Duelist] (28) Relay Coupler [Behemoth] (13) System Restoration Module Recalibrator Missile Launcher Great Maul Peak State ------------ > --- POWER ------------ Light Angular Momentum Engine Light Antimatter Reactor > --- PROPULSION ------- Carbon-fiber Leg Carbon-fiber Leg Carbon-fiber Leg Carbon-fiber Leg Improved Carbon-fiber Leg Improved Titanium Leg > --- UTILITY ---------- Improved Cooling System Huge Storage Unit Advanced Targeting Computer Core Analyzer > --- WEAPON ----------- Gatling Laser Improved Assault Rifle Gauss Rifle > --- INVENTORY -------- Deuterium Engine Improved Deuterium Engine Power Amplifier Cargo Storage Unit Advanced Weight Redist. System Improved Sensor Array Advanced Targeting Computer Core Analyzer Armor Integrity Analyzer Advanced ECM Suite Hardlight Generator Authchip [R/Combat] Authchip [Processor] Authchip [Weapon] Relay Coupler [Grunt] Relay Coupler [Grunt] Relay Coupler [Duelist] Relay Coupler [Behemoth] System Restoration Module Recalibrator Missile Launcher Remote Datajack Plasma Cutter Great Maul [Rating: 63] Favorites ----------- Power Improved Ion Engine Engine Improved Ion Engine Power Core Light Nuclear Core Reactor Light Antimatter Reactor Propulsion Aluminum Leg Leg Aluminum Leg Wheel Wheel Utility Huge Storage Unit Device Cooling System Storage Huge Storage Unit Processor Advanced Targeting Computer Hackware Relay Coupler [Grunt] Weapon Improved Assault Rifle Energy Gun Field Laser Energy Cannon Advanced Beam Cannon Ballistic Gun Improved Assault Rifle Ballistic Cannon Light Cannon Launcher Missile Launcher Special Weapon Remote Datajack Impact Weapon Impact Mace Slashing Weapon Axe Build | -11 -10 -9 -8 -8 -8 -8 -7 -6 -6 ------- Run | Yrd Mat Mat Mat Gar Mat Gar Fac Fac Gar Slots Evolved 8 | . . 2 2 . . . 2 2 . Power 1 | . . . . . . . 1 . . Propulsion 4 | . . 1 1 . . . . 2 . Utility 2 | . . . 1 . . . 1 . . Weapon 1 | . . 1 . . . . . . . Parts Attached 149 | . 9 24 11 19 40 17 12 4 13 Power 27 | . 1 5 . 2 7 5 2 1 4 Engine 16 | . 1 5 . 1 4 1 1 . 3 Core 10 | . . . . 1 3 4 1 1 . Reactor 1 | . . . . . . . . . 1 Propulsion 56 | . 3 7 4 11 14 4 6 2 5 Treads . | . . . . . . . . . . Leg 31 | . . . . 8 9 4 5 . 5 Wheel 25 | . 3 7 4 3 5 . 1 2 . Hover . | . . . . . . . . . . Flight . | . . . . . . . . . . Utility 16 | . 2 1 4 3 2 2 1 . 1 Device 8 | . . 1 3 2 . 1 1 . . Storage 4 | . 2 . 1 . 1 . . . . Processor 3 | . . . . 1 1 1 . . . Hackware 1 | . . . . . . . . . 1 Protection . | . . . . . . . . . . Artifact . | . . . . . . . . . . Weapon 50 | . 3 11 3 3 17 6 3 1 3 Energy Gun 14 | . . 3 1 1 6 1 1 1 . Energy Cannon 5 | . 3 1 . 1 . . . . . Ballistic Gun 20 | . . 5 2 1 8 3 1 . . Ballistic Cannon 1 | . . 1 . . . . . . . Launcher 5 | . . 1 . . 3 . . . 1 Special Weapon 2 | . . . . . . . . . 2 Impact Weapon 1 | . . . . . . . 1 . . Slashing Weapon 2 | . . . . . . 2 . . . Piercing Weapon . | . . . . . . . . . . Special Melee Weapon . | . . . . . . . . . . Unidentified Prototypes 7 | . . 2 1 . 3 . 1 . . Parts Lost 41 | . . 2 1 10 6 5 . 2 15 Power 6 | . . . . 1 2 . . . 3 Propulsion 23 | . . 1 1 6 2 3 . 2 8 Utility 3 | . . . . 2 . . . . 1 Weapon 9 | . . 1 . 1 2 2 . . 3 Highest Loss Streak 13 | . . 1 1 5 1 4 . 2 13 To Critical Strikes . | . . . . . . . . . . Average Slot Usage (%) 95 | . 81 93 91 96 97 97 99 93 81 Engine 6 | . 10 10 9 4 5 2 13 3 1 Core 3 | . . . . 4 3 6 . 8 8 Leg 17 | . . . . 12 28 10 26 23 21 Wheel 14 | . 28 28 28 20 7 23 3 8 2 Device 7 | . . 11 17 13 6 . 6 6 5 Storage 8 | . 14 11 9 9 9 9 7 6 6 Processor 9 | . . . . 4 10 17 15 13 13 Energy Gun 8 | . 2 9 14 9 8 8 2 6 5 Energy Cannon 2 | . 25 3 . 8 1 . . . . Ballistic Gun 13 | . . 17 12 9 15 17 14 13 11 Naked Turns . | . . . . . . . . . . Heaviest Build 114 | 14 31 37 98 103 98 100 109 109 114 Greatest Support 98 | 20 26 36 40 40 45 42 65 65 98 Greatest Overweight (x) 34 | . 1 2 4 9 9 8 9 6 34 Average Overweight (x) 2 | . . . 2 2 2 3 5 3 7 Largest Inventory Capacity 25 | . 15 15 25 25 25 25 25 25 25 Average Capacity 23 | . 9 15 23 25 25 25 25 25 25 Most Carried 25 | . 10 15 25 25 25 25 25 25 25 Average Carried 22 | . 8 12 20 24 24 24 24 25 24 Final Capacity 25 | 8 15 15 25 25 25 25 25 25 25 Final Carried 25 | 6 8 15 25 25 25 25 25 25 21 Class Distribution -------------------- 47% | Scavenger-Gunner 16% | Gunner 9% | Scavenger-Mutant 8% | Scavenger-Skirmisher 7% | Bothacker-Gunner 6% | Mutant 4% | Skirmisher Dominant Class ---------------- Mutant | -10/Materials Scavenger-Skirmisher | -9/Materials Scavenger-Skirmisher | -8/Materials Scavenger-Gunner | -8/Garrison Scavenger-Gunner | -8/Materials Scavenger-Gunner | -8/Garrison Scavenger-Mutant | -7/Factory Bothacker-Gunner | -6/Factory Bothacker-Gunner | -6/Garrison Resources | -11 -10 -9 -8 -8 -8 -8 -7 -6 -6 ----------- Run | Yrd Mat Mat Mat Gar Mat Gar Fac Fac Gar Matter Collected 3673 | 200 121 710 231 379 1056 520 96 191 169 Remotely . | . . . . . . . . . . Salvage Created 7947 | . 304 1464 712 1166 2428 794 152 350 577 Parts 447 | . 16 101 48 51 139 49 7 15 21 Haulers Intercepted 15 | . 2 2 4 . 6 . 1 . . Recyclers Shooed . | . . . . . . . . . . Parts Field Recycled . | . . . . . . . . . . Retrieved Matter . | . . . . . . . . . . Parts Self-Destructed . | . . . . . . . . . . Prevented . | . . . . . . . . . . Kills | -11 -10 -9 -8 -8 -8 -8 -7 -6 -6 ------- Run | Yrd Mat Mat Mat Gar Mat Gar Fac Fac Gar Combat Hostiles Destroyed 135 | . 5 23 11 31 26 23 2 4 10 Guns 116 | . . 21 8 27 23 23 2 4 8 Cannons 12 | . 5 2 . 4 1 . . . . AOE 6 | . . . 3 . 1 . . . 2 Classes Destroyed 16 | . 4 5 3 . 1 2 . 1 . Worker 14 | . . 6 . . 8 . . . . Builder 8 | . . 2 2 . 4 . . . . Tunneler 4 | . . . 2 . 2 . . . . Hauler 15 | . 2 2 4 . 6 . 1 . . Recycler 12 | . 1 3 1 . 6 . . 1 . Mechanic 1 | . . . 1 . . . . . . Operator 5 | . . 2 1 . 1 . . 1 . Watcher 11 | . . 5 1 . 5 . . . . Swarmer 35 | . 3 4 4 10 5 9 . . . Grunt 64 | . 2 13 6 17 11 9 2 . 4 Brawler 1 | . . . . . 1 . . . . Duelist 1 | . . . . . . 1 . . . Sentry 27 | . . 6 . 4 8 1 . 2 6 Specialist 2 | . . . . . . 2 . . . Hunter 3 | . . . 1 . 1 1 . . . Programmer 2 | . . . . . . . . 2 . Best Kill Streak 13 | . 3 8 10 8 13 7 2 2 4 Combat Bots Only 8 | . 3 6 7 8 3 7 2 2 4 Max Kills in Single Turn 6 | . 1 2 6 2 2 3 1 2 1 Gunslinging 1 | . . 1 . 1 1 1 . . . Exploded 3 | . . . 3 . 1 . . . 1 Melee . | . . . . . . . . . . Uniques/NPCs Destroyed . | . . . . . . . . . . Combat | -11 -10 -9 -8 -8 -8 -8 -7 -6 -6 -------- Run | Yrd Mat Mat Mat Gar Mat Gar Fac Fac Gar Hostile Shots Fired 882 | . 27 80 51 135 121 90 4 43 331 Missed 280 | . 9 22 18 35 36 17 . 18 125 Damage Taken 6020 | . 144 632 362 1033 888 852 97 320 1692 Core 942 | . 28 80 77 178 95 144 . 21 319 Absorbed by Shields 4 | . . . . 4 . . . . . Ignored by Resistances 1817 | . 45 189 107 311 257 255 27 99 527 Regen/Repaired (Parts) 262 | . . 60 . . 202 . . . . Core Remaining (%) 75 | 100 88 80 . . . 10 100 . . Volleys Fired 427 | . 30 81 31 71 109 65 5 8 27 Largest 3 | . 2 3 3 3 3 3 3 3 3 Hottest 154 | . 120 139 143 154 154 111 106 131 131 Shots Fired 1138 | . 37 227 87 194 323 174 15 24 57 Gun 992 | . . 199 87 141 303 174 15 24 49 Cannon 135 | . 37 28 . 53 17 . . . . Launcher 7 | . . . . . 3 . . . 4 Special 4 | . . . . . . . . . 4 Kinetic 607 | . . 125 45 63 198 119 10 16 31 Thermal 520 | . 37 102 42 131 122 55 5 8 18 Explosive 7 | . . . . . 3 . . . 4 Electromagnetic . | . . . . . . . . . . Robot Hit Streak 31 | . 7 18 12 24 29 31 11 16 18 Robot Miss Streak 5 | . 2 4 5 2 3 1 1 2 1 Penetration Max . | . . . . . . . . . . Secondary Targets 18 | . . 3 2 3 2 4 . . 4 Max Gunslinging Chain 1 | . . 1 1 1 1 1 . . 1 Shots Hit Robots 736 | . 22 149 67 110 218 93 11 17 49 Core Hits 398 | . 9 62 63 69 85 45 6 16 43 Critical Kills 1 | . . . . . . . . 1 . Critical Parts Destroyed 4 | . . . 2 . 2 . . . . Critical Strikes 17 | . . 2 4 4 6 . . 1 . Burn 12 | . . 2 2 4 4 . . . . Destroy 5 | . . . 2 . 2 . . 1 . Melee Attacks 25 | . . . . . . 8 17 . . Impact . | . . . . . . . . . . Slashing 25 | . . . . . . 8 17 . . Piercing . | . . . . . . . . . . Sneak Attacks . | . . . . . . . . . . Combat Hostiles . | . . . . . . . . . . Follow-up Attacks . | . . . . . . . . . . Damage Inflicted 13723 | . 507 2391 1737 2078 3795 1564 209 444 998 Guns 10874 | . . 1787 1028 1565 3498 1507 209 444 836 Cannons 1531 | . 507 349 . 513 162 . . . . Explosions 1315 | . . 253 709 . 134 57 . . 162 Melee . | . . . . . . . . . . Ramming 3 | . . 2 . . 1 . . . . Kinetic 5783 | . . 1095 392 517 2062 1016 134 192 375 Thermal 7584 | . 507 1294 1345 1561 1598 491 75 252 461 Explosive 353 | . . . . . 134 57 . . 162 Electromagnetic . | . . . . . . . . . . Impact . | . . . . . . . . . . Slashing . | . . . . . . . . . . Piercing . | . . . . . . . . . . Highest Corruption 2 | . . . . . . . . 2 2 Average Corruption 1 | . . . . . . . . 1 2 Corruption Purged . | . . . . . . . . . . Corruption Blocked . | . . . . . . . . . . Effects 8 | . . . . . . . . 3 5 Message Errors 1 | . . . . . . . . 1 . Matter Fused 1 | . . . . . . . . . 1 Energy Discharges 2 | . . . . . . . . 1 1 Parts Rejected 1 | . . . . . . . . . 1 Parts Fused 1 | . . . . . . . . . 1 Data Loss (minor) 1 | . . . . . . . . 1 . Weapon Failures 1 | . . . . . . . . . 1 Overload Shots . | . . . . . . . . . . Overflow Damage 273 | . . 179 60 2 32 . . . . Projectiles 22 | . . 6 . 2 14 . . . . Explosions 251 | . . 173 60 . 18 . . . . Melee . | . . . . . . . . . . Knockbacks . | . . . . . . . . . . Impact . | . . . . . . . . . . Kinetic . | . . . . . . . . . . Secondary . | . . . . . . . . . . Self-Inflicted Damage 105 | . . 71 . . 14 20 . . . Shots 3 | . . 1 . . 1 1 . . . Rammed 1 | . . 1 . . . . . . . Targets Rammed 2 | . . 1 . . 1 . . . . Kicked 1 | . . . . . 1 . . . . Crushed . | . . . . . . . . . . Highest Temperature 465 | . 465 457 246 351 60 300 318 5 229 Average Temperature 115 | . 142 162 58 91 22 105 154 5 81 Received Heat Transfer 2880 | . 45 327 225 627 378 369 66 48 795 Effects 25 | . 5 8 4 . . 8 . . . Shutdowns 3 | . 1 2 . . . . . . . Energy Bleed 4 | . 1 3 . . . . . . . Interference 13 | . 1 . 4 . . 8 . . . Matter Decay 2 | . 1 1 . . . . . . . Damage (minor) 3 | . 1 2 . . . . . . . Siege Activations . | . . . . . . . . . . Robots Corrupted . | . . . . . . . . . . Combat Hostiles . | . . . . . . . . . . Parts Fried . | . . . . . . . . . . Impact Corruptions . | . . . . . . . . . . Robots Melted 1 | . . . . . 1 . . . . Combat Hostiles 1 | . . . . . 1 . . . . Parts Melted 26 | . 5 5 2 8 3 . . . 3 Heat Transferred 14923 | . 1073 2720 1512 3122 3700 1073 148 525 1050 Parts Sabotaged . | . . . . . . . . . . Parts Stolen . | . . . . . . . . . . Parts Stripped . | . . . . . . . . . . Power Chain Reactions . | . . . . . . . . . . Alert | -11 -10 -9 -8 -8 -8 -8 -7 -6 -6 ------- Run | Yrd Mat Mat Mat Gar Mat Gar Fac Fac Gar Peak Influence 1382 | . 184 679 535 1382 757 781 364 117 172 Initial 580 | . . 66 172 190 580 . 354 10 . Average 397 | . 88 386 387 861 382 404 207 41 87 Maximum Alert Level 4 | . . 2 2 4 3 3 1 . . Low Security (%) 34 | . 100 17 14 4 26 21 58 100 100 Level 1 18 | . . 31 24 11 12 27 41 . . Level 2 36 | . . 51 60 13 58 49 . . . Level 3 5 | . . . . 34 2 . . . . Level 4 5 | . . . . 35 . . . . . Level 5 . | . . . . . . . . . . High Security . | . . . . . . . . . . Max Security . | . . . . . . . . . . Squads Dispatched 9 | . . 3 . . 2 . 3 1 . Investigation . | . . . . . . . . . . Extermination 3 | . . . . . . . 2 1 . Reinforcement 6 | . . 3 . . 2 . 1 . . Assault . | . . . . . . . . . . Garrison . | . . . . . . . . . . Intercept . | . . . . . . . . . . Searches Triggered . | . . . . . . . . . . Construction Impeded . | . . . . . . . . . . Haulers Reinforced 1 | . . . . . . . 1 . . Active Scanning Responses . | . . . . . . . . . . Cargo Convoy Interrupts . | . . . . . . . . . . Stealth | -11 -10 -9 -8 -8 -8 -8 -7 -6 -6 --------- Run | Yrd Mat Mat Mat Gar Mat Gar Fac Fac Gar Distress Signals 4 | . . 2 . . 2 . . . . Communications Jammed . | . . . . . . . . . . Distress Signals . | . . . . . . . . . . Times Spotted 175 | . 8 35 13 31 38 26 4 6 14 Peak Tracking Total 7 | . 5 7 4 7 5 5 3 2 7 Tactical Retreats 4 | . 1 . . . 2 . . . 1 Traps | -11 -10 -9 -8 -8 -8 -8 -7 -6 -6 ------- Run | Yrd Mat Mat Mat Gar Mat Gar Fac Fac Gar Traps Triggered 14 | . 1 . 1 6 2 3 . . 1 Indirectly . | . . . . . . . . . . Trap Hack Attempts . | . . . . . . . . . . Triggered . | . . . . . . . . . . Disarmed . | . . . . . . . . . . Reprogrammed . | . . . . . . . . . . Reused . | . . . . . . . . . . Traps Extracted . | . . . . . . . . . . Installed . | . . . . . . . . . . Triggered . | . . . . . . . . . . Machines | -11 -10 -9 -8 -8 -8 -8 -7 -6 -6 ---------- Run | Yrd Mat Mat Mat Gar Mat Gar Fac Fac Gar Machines Disabled 23 | . . 2 3 7 1 8 . 1 1 Max in Single Turn 3 | . . 2 3 2 1 2 . 1 1 Garrison Relay 11 | . . . . 5 . 5 . . 1 Phase Generator 2 | . . . . 1 . 1 . . . Machines Repaired . | . . . . . . . . . . Machines Dismantled . | . . . . . . . . . . Machines Sabotaged . | . . . . . . . . . . Overloaded Fab Kills . | . . . . . . . . . . Hacking | -11 -10 -9 -8 -8 -8 -8 -7 -6 -6 --------- Run | Yrd Mat Mat Mat Gar Mat Gar Fac Fac Gar Machines Accessed 25 | . . 2 2 4 8 5 2 2 . Terminals 16 | . . . . 4 4 5 2 1 . Fabricators . | . . . . . . . . . . Repair Stations 4 | . . 1 1 . 2 . . . . Recycling Units . | . . . . . . . . . . Scanalyzers 2 | . . 1 . . 1 . . . . Garrison Access 3 | . . . 1 . 1 . . 1 . Total Hacks 64 | . . 4 3 10 33 5 3 6 . Successful 41 | . . 4 1 1 28 3 . 4 . Failed 23 | . . . 2 9 5 2 3 2 . Catastrophic 4 | . . . . 2 . 2 . . . Database Lockouts . | . . . . . . . . . . Manual 20 | . . . . 2 13 1 3 1 . Terminals 40 | . . . . 10 17 5 3 5 . Fabricators . | . . . . . . . . . . Repair Stations 15 | . . 2 2 . 11 . . . . Recycling Units . | . . . . . . . . . . Scanalyzers 6 | . . 2 . . 4 . . . . Garrison Access 3 | . . . 1 . 1 . . 1 . Terminal Hacks 16 | . . . . 1 10 3 . 2 . Record 1 | . . . . . . . . 1 . Part Schematic 4 | . . . . . 4 . . . . Open Door 1 | . . . . . . 1 . . . Alert Level 2 | . . . . . 2 . . . . Unreport Threat 2 | . . . . . 2 . . . . Hauler Manifests 1 | . . . . . 1 . . . . Registered Components 1 | . . . . . 1 . . . . Zone Layout 1 | . . . . . . . . 1 . Garrison Registry 2 | . . . . 1 . 1 . . . Patrol Navigation 1 | . . . . . . 1 . . . Fabricator Hacks . | . . . . . . . . . . Repair Station Hacks 12 | . . 2 . . 10 . . . . Scan Component 6 | . . 1 . . 5 . . . . Repair 6 | . . 1 . . 5 . . . . Recycling Unit Hacks . | . . . . . . . . . . Scanalyzer 6 | . . 2 . . 4 . . . . Insert Component 3 | . . 1 . . 2 . . . . Analyze 3 | . . 1 . . 2 . . . . Garrison Access Hacks 3 | . . . 1 . 1 . . 1 . Unlock Access 3 | . . . 1 . 1 . . 1 . Unauthorized Hacks 4 | . . . . . 3 . . 1 . Terminals 4 | . . . . . 3 . . 1 . Botnet 4 | . . . . . 3 . . 1 . Fabricators . | . . . . . . . . . . Repair Stations . | . . . . . . . . . . Recycling Units . | . . . . . . . . . . Scanalyzers . | . . . . . . . . . . Garrison Access . | . . . . . . . . . . Data Cores Recovered 1 | . . . . . . . . 1 . Used . | . . . . . . . . . . Hacking Detections 18 | . . 1 1 4 7 3 1 1 . Full Trace Events 3 | . . . . 3 . . . . . Feedback Events . | . . . . . . . . . . Feedback Blocked . | . . . . . . . . . . Robot Schematics Acquired . | . . . . . . . . . . Robots Built . | . . . . . . . . . . Authchips . | . . . . . . . . . . Time . | . . . . . . . . . . Total Robot Build Rating . | . . . . . . . . . . Part Schematics Acquired 7 | . . 1 . . 6 . . . . Parts Built . | . . . . . . . . . . Authchips . | . . . . . . . . . . Time . | . . . . . . . . . . Total Part Build Rating . | . . . . . . . . . . Parts Repaired 6 | . . 1 . . 5 . . . . Time 217 | . . 32 . . 185 . . . . Parts Recycled . | . . . . . . . . . . Recycled Matter . | . . . . . . . . . . Retrieved Matter . | . . . . . . . . . . Retrieved Components . | . . . . . . . . . . Parts Scanalyzed 3 | . . 1 . . 2 . . . . Part Schematics Acquired 3 | . . 1 . . 2 . . . . Parts Damaged 1 | . . . . . 1 . . . . Bothacking | -11 -10 -9 -8 -8 -8 -8 -7 -6 -6 ------------ Run | Yrd Mat Mat Mat Gar Mat Gar Fac Fac Gar Used RIF Installer 4 | . . . . 1 . 2 . . 1 Threat Obfuscator 1 | . . . . . . 1 . . . Watcher Feeds 1 | . . . . . . 1 . . . Autoassimilate 1 | . . . . . . . . . 1 Robots Hacked 2 | . . . . . . . . . 2 Non-combat . | . . . . . . . . . . Combat 2 | . . . . . . . . . 2 Robot Hacks Applied 2 | . . . . . . . . . 2 streamctrl_high 2 | . . . . . . . . . 2 Relay Couplers Released 49 | . . . . 23 . 22 . . 4 Machine Destruction 49 | . . . . 23 . 22 . . 4 Attached 1 | . . . . . . . . . 1 Fabnet Peak Effective % . | . . . . . . . . . . Robots Rewired 4 | . . . . . . 4 . . . Allies Hacked 1 | . . . . . . . 1 . . Hacks Repelled . | . . . . . . . . . . Allies | -11 -10 -9 -8 -8 -8 -8 -7 -6 -6 -------- Run | Yrd Mat Mat Mat Gar Mat Gar Fac Fac Gar Total Allies 8 | . . . . . . 6 . . 2 Largest Group 5 | . . . . . . 5 5 3 2 Highest-Rated Group 116 | . . . . . . 116 116 63 58 Highest-Rated Ally 39 | . . . . . . 39 24 24 29 Total Orders . | . . . . . . . . . . Ally Attacks 27 | . . . . . . 12 2 8 5 Total Damage 481 | . . . . . . 167 59 179 76 Kills 6 | . . . . . . 4 1 1 . Allies Corrupted . | . . . . . . . . . . Allies Melted . | . . . . . . . . . . Intel | -11 -10 -9 -8 -8 -8 -8 -7 -6 -6 ------- Run | Yrd Mat Mat Mat Gar Mat Gar Fac Fac Gar Robot Analysis Total . | . . . . . . . . . . Derelict Logs Recovered . | . . . . . . . . . . Drone Launches . | . . . . . . . . . . Drone Recoveries . | . . . . . . . . . . Exploration | -11 -10 -9 -8 -8 -8 -8 -7 -6 -6 ------------- Run | Yrd Mat Mat Mat Gar Mat Gar Fac Fac Gar Turns Passed 9813 | . 361 863 469 1441 3257 1455 1047 467 453 Spaces Moved 4766 | 1 287 496 282 775 1200 867 455 257 146 Core 4 | . . . . . . . . . 4 Treads . | . . . . . . . . . . Legs 1120 | 1 . . . 65 739 . 222 38 55 Wheels 3642 | . 287 496 282 710 461 867 233 219 87 Hover . | . . . . . . . . . . Flight . | . . . . . . . . . . Fastest Speed 80 | 120 80 86 95 110 112 112 187 145 190 Average Speed 158 | 120 89 99 115 142 208 133 206 162 234 Slowest Speed 1750 | 120 105 130 140 330 330 210 225 190 1750 Overloaded Moves . | . . . . . . . . . . Propulsion Burnouts . | . . . . . . . . . . Robots Hopped . | . . . . . . . . . . Cave-ins Triggered . | . . . . . . . . . . Exploration Rate (%) 40 | 1 43 42 25 93 88 77 12 7 15 Regions Visited 9 Branch Regions . Pre-discovered Areas . | . . . . . . . . . . Known Exits Taken 3 | . . . 1 . 1 . . 1 . Unknown Exits Taken 4 | 1 1 1 . . . . 1 . . Scrap Searched . | . . . . . . . . . . Spaces Dug 15 | . . . . . . 2 13 . . Terrain Destroyed 225 | . . 19 9 77 34 73 13 . . Melee 15 | . . . . . . 2 13 . . Projectile . | . . . . . . . . . . AOE 210 | . . 19 9 77 34 71 . . . Terrain Rammed . | . . . . . . . . . . Walls Destroyed . | . . . . . . . . . . Machines Disabled . | . . . . . . . . . . Actions | -11 -10 -9 -8 -8 -8 -8 -7 -6 -6 --------- Run | Yrd Mat Mat Mat Gar Mat Gar Fac Fac Gar Total 6222 | . 357 716 366 998 1731 1034 527 287 206 Wait 456 | . 12 56 10 35 309 7 15 12 . Move 4759 | . 286 495 281 774 1200 866 454 257 146 Hop . | . . . . . . . . . . Pick Up 138 | . 9 31 19 34 28 7 8 2 . Fast Attach 47 | . 5 2 3 4 18 4 4 3 4 Attach 35 | . 3 7 2 7 6 3 2 . 5 Detach 1 | . . . . . . . . . 1 Swap 68 | . 1 15 6 8 17 10 6 1 4 Drop 166 | . 11 28 14 33 43 13 16 4 4 Fire 427 | . 30 81 31 71 109 65 5 8 27 Melee 25 | . . . . . . 8 17 . . Ram 1 | . . 1 . . . . . . . Kick 1 | . . . . . 1 . . . . Crush . | . . . . . . . . . . Escape Stasis 55 | . . . . 32 . 8 . . 15 Rewire 43 | . . . . . . 43 . . . Trap . | . . . . . . . . . . Miscellaneous . | . . . . . . . . . . Route ------- -11/Scrapyard -10/Materials -9/Materials -8/Materials (discovered 2 exits: *Fac / Gar) -8/Garrison (discovered 3 exits: *Mat x3) -8/Materials (discovered 3 exits: *Fac x2 / Gar) -8/Garrison (discovered 3 exits: *Fac x3) -7/Factory -6/Factory -6/Garrison History --------- Turn | Location | Event 1 | -11/Scrapyard | Discovered new exit (range 0) 1 | -11/Scrapyard | Entered Materials 318 | -10/Materials | Build established: Mutant 352 | -10/Materials | Discovered new exit (range 8) 362 | -10/Materials | Entered another Materials area 362 | -9/Materials | Evolved 2 slots: Propulsion x1, Weapon x1 1142 | -9/Materials | Discovered new exit (range 15) 1197 | -9/Materials | Repaired Imp. Ion Engine 1225 | -9/Materials | Entered another Materials area 1225 | -8/Materials | Evolved 2 slots: Propulsion x1, Utility x1 1257 | -8/Materials | Build established: Scavenger-Skirmisher 1339 | -8/Materials | Destroyed 7 combat bots 1400 | -8/Materials | Discovered new exit (range 11) 1692 | -8/Materials | Identified exit to Garrison 1694 | -8/Materials | Entered Garrison 1817 | -8/Garrison | Destroyed 8 combat bots 1819 | -8/Garrison | Lost 5 parts (2n2u1w) 1828 | -8/Garrison | Triggered checkpoint 1861 | -8/Garrison | Triggered checkpoint 1888 | -8/Garrison | Triggered checkpoint 1919 | -8/Garrison | Triggered checkpoint 2026 | -8/Garrison | Discovered new exit (range 9) 2032 | -8/Garrison | Triggered checkpoint 2056 | -8/Garrison | Build established: Gunner 2082 | -8/Garrison | Discovered new exit (range 62) 2082 | -8/Garrison | Discovered new exit (range 6) 2082 | -8/Garrison | Discovered new exit (range 87) 2105 | -8/Garrison | Phase Generator disabled 2116 | -8/Garrison | Garrison Relay disabled 2205 | -8/Garrison | Garrison Relay disabled 2298 | -8/Garrison | Garrison Relay disabled 2520 | -8/Garrison | Garrison Relay disabled 2536 | -8/Garrison | Triggered checkpoint 2654 | -8/Garrison | Installed Relay Interface Framework 2694 | -8/Garrison | Build established: Scavenger-Gunner 2754 | -8/Garrison | Triggered checkpoint 2783 | -8/Garrison | Garrison Relay disabled 3135 | -8/Garrison | Entered Materials 3854 | -8/Materials | Core integrity fell below 50% 4858 | -8/Materials | Discovered new exit (range 9) 5343 | -8/Materials | Build established: Gunner 5564 | -8/Materials | Repaired Cooling System 5605 | -8/Materials | Repaired Minigun 5656 | -8/Materials | Repaired Imp. Assault Rifle 5684 | -8/Materials | Repaired Wheel 5983 | -8/Materials | Build established: Scavenger-Gunner 6069 | -8/Materials | Discovered new exit (range 12) 6131 | -8/Materials | Repaired Missile Launcher 6392 | -8/Materials | Identified exit to Garrison 6392 | -8/Materials | Entered Garrison 6430 | -8/Garrison | Expanded RIF knowledge: Watcher Feeds 6458 | -8/Garrison | Discovered new exit (range 39) 6458 | -8/Garrison | Discovered new exit (range 80) 6458 | -8/Garrison | Discovered new exit (range 90) 6560 | -8/Garrison | Triggered checkpoint 6589 | -8/Garrison | Garrison Relay disabled 6610 | -8/Garrison | Expanded RIF knowledge: Threat Obfuscation 6678 | -8/Garrison | Triggered checkpoint 6747 | -8/Garrison | Destroyed 7 combat bots 6758 | -8/Garrison | Triggered checkpoint 6804 | -8/Garrison | Rescued a captive Derelict 6806 | -8/Garrison | Rescued a captive Derelict 6840 | -8/Garrison | Triggered checkpoint 6844 | -8/Garrison | Build established: Gunner 6864 | -8/Garrison | Garrison Relay disabled 6945 | -8/Garrison | Triggered checkpoint 7034 | -8/Garrison | Triggered checkpoint 7117 | -8/Garrison | Garrison Relay disabled 7204 | -8/Garrison | Triggered checkpoint 7220 | -8/Garrison | Build established: Scavenger-Gunner 7231 | -8/Garrison | Garrison Relay disabled 7342 | -8/Garrison | Triggered checkpoint 7364 | -8/Garrison | Triggered checkpoint 7364 | -8/Garrison | Garrison Relay disabled 7371 | -8/Garrison | Core integrity fell below 20% 7412 | -8/Garrison | Lost 4 parts (2n2w) 7842 | -8/Garrison | Phase Generator disabled 7847 | -8/Garrison | Entered Factory 7847 | -7/Factory | Accompanied by 5 allies 7847 | -7/Factory | Evolved 2 slots: Power x1, Utility x1 8129 | -7/Factory | Build established: Scavenger-Mutant 8822 | -7/Factory | Discovered new exit (range 16) 8894 | -7/Factory | Entered another Factory area 8894 | -6/Factory | Accompanied by 3 allies 8894 | -6/Factory | Evolved 2 slots: Propulsion x2 9274 | -6/Factory | Lost 3 allies 9361 | -6/Factory | Identified exit to Garrison 9361 | -6/Factory | Entered Garrison 9417 | -6/Garrison | Expanded RIF knowledge: Autoassimilate 9433 | -6/Garrison | Triggered checkpoint 9477 | -6/Garrison | Build established: Bothacker-Gunner 9478 | -6/Garrison | Garrison Relay disabled 9761 | -6/Garrison | Triggered checkpoint 9764 | -6/Garrison | Triggered checkpoint 9795 | -6/Garrison | Triggered checkpoint 9814 | -6/Garrison | Self-destructed Last Messages --------------- 09792_ Deuterium Engine destroyed. 09793_ Jacked G-50 Soldier... >>streamctrl_high Hijacking control node. 09794_ Jacked G-50 Soldier... >>streamctrl_high Hijacking control node. 09795_ Soldier 5a suffers critical hit (Burn). 09796_ Jacked G-67 Veteran... >>streamctrl_high System outside max range to establish control (5). 09797_ Soldier 5b destroyed. 09797_ Jacked G-67 Veteran... >>streamctrl_high System outside max range to establish control (5). 09799_ Soldier 5a overheating. 09801_ Soldier 5a destroyed. 09810_ Remote Datajack destroyed. Map ----- +----------------------------------------------------+ | ?????????????????????????????????????????????????? | | ?????????????????????????????????????????????????? | | ?????????????????????????????????????????????????? | | ?????????????????????????????????????????????????? | | ?????????????????????????????????????????????????? | | ?????????????????????????????????????????????????? | | ?????????????????????????????????????????????????? | | ?????????????????????????????????????????????????? | | ?????????????????????????????????????????????????? | | ?????????????????????????????????????????????????? | | ?????????????????????????????????????????????????? | | ?????????????????????????????????????????????????? | | ????????????????????? ???????????????????????????? | | ???????????????????## ???? ##??????????????????? | | ??????????????##??? ???? ??????????????????? | | ?????????????? ??? ???? ??????????????????? | | ?????????????? ?? ???? #??????????????????? | | ???????????????# ?# ??? #??????????????????? | | ???????????????# ## ??# ###????????????????? | | ???????????????" ?? #????????????????? | | ???????????????" ?? !%#????????????????? | | ????????????????? ? %[#????????????????? | | ??????????????????? g ? ?????????????????? | | ???????????????#????# %=?# #??????????????????? | | ???????????????# ## [ ## #??????????????????? | | ???????????????# @ #??????????????????? | | ???????????????# [ #??????????????????? | | ???????????????# ! #??????????????????? | | ???????????????## ##[*! ## #??????????????????? | | ????????????????#???#=%%=?# #??????????????????? | | ????????????????????#####?#* #??????????????????? | | ??????????????????????????# = #??????????????????? | | ??????????????????????????# % #??????????????????? | | ??????????????????????????#!* #??????????????????? | | ??????????????????????????#[ %#################### | | ??????????????????????????# * ^! | | ??????????????????????????# %^ | | ??????????????????????????# | | ??????????????????????????#######"############# # | | ????????????????????????????????# #??????????# # | | ????????????????????????????????# #??????????# # | | ????????????????????????????????############### # | | ????????????????????????????????# [% # | | ????????????????????????????????# ! %! # | | ????????????????????????????????##!!!##### ### # | | ????????????????????????????????#"" ""#??# #?# # | | ????????????????????????????????#######??#####?# # | | ???????????????????????????????????????????????# # | | ??????????????????????????????????????????????## # | | ??????????????????????????????????????????????# | +----------------------------------------------------+ Best States ------------- Heat Dissipation 75 Energy Generation 34 Energy Capacity 455 Matter Stores 300 Matter Capacity 300 Sight Range 16 Robot Scan Range 15 Terrain Scan Density 110 Resistance: KI 20 Resistance: TH 20 Resistance: EX 20 Resistance: EM 20 Resistance: I 20 Resistance: S 20 Resistance: P 20 Evasion (%) 44 Targeting Accuracy 8 Core Analysis 6 Offensive Hacking 10 Relay Coupler Types 1 Relay Coupler Value 39 Authchip Count 7 Item Schematics ----------------- Hvy. Assault Rifle | -9/Materials | Scanalyzed Cargo Storage Unit | -8/Materials | Hacked Adv. Targeting Computer | -8/Materials | Hacked Plasma Cutter | -8/Materials | Hacked Imp. Terrain Scanner | -8/Materials | Hacked Rocket Launcher | -8/Materials | Scanalyzed Imp. Signal Interpreter | -8/Materials | Scanalyzed Robot Schematics ------------------ None Fabricated ------------ Nothing Alien Tech Used ----------------- None Achievements -------------- None Challenges ------------ None Game ------ Seed FortressBarrageWeb Manual? 0 Play Time 01:27:30 Cumulative 117.4 hours Start 2024.08.03 @ 08:15:37 End 2024.08.05 @ 05:30:31 Sessions 7 Manual Loads 0 Difficulty Adventurer Special Mode None Game No. 164 Rogue 0 Adventurer 164 Explorer 0 Win Type - Total 0 Types 0/0/0/0/0/0/0/0/0 Lore% 47 Gallery% 52 Achievement% 37 Wizard Run 0 Options --------- Layout 2 ASCII 0 Keyboard 0 Movement Mouse Keybinds 0 Fullscreen 2 Font 48/Terminus Map View 50x44 Zoom Use 0% Tactical HUD 1 Map Filters NONE Filters NONE Steam 1 RUN: 2d9afb1f-09c0-4044-8dfb-8be17b10ca2d